[Event "EYTCC U12 Open 2019"]
[Site "Pardubice"]
[Date "2019.07.11"]
[Round "1.22"]
[White "Lang, Simon"]
[Black "Navumenka, Mikhei"]
[Result "0-1"]
[ECO "C01"]
[WhiteElo "1506"]
[BlackElo "2196"]
[Annotator "NA"]
[PlyCount "52"]
[EventDate "2019.07.11"]
[EventType "swiss"]
[EventCountry "CZE"]
[SourceTitle "playchess.com"]
[Source "ChessBase"]
[SourceQuality "1"]
[WhiteTeam "Czech Republic"]
[BlackTeam "Belarus"]
[WhiteTeamCountry "CZE"]
[BlackTeamCountry "BLR"]
[TimeControl "40/5400+30:1800+30"]

1. e4 {[%emt 0:00:00]} e6 {[%emt 0:00:00]} 2. d4 {[%emt 0:01:10]} d5 {[%emt 0:00:00]} 3. exd5 {[%emt 0:02:17]} exd5 {[%emt 0:00:05]} 4. c4 {[%emt 0:03:13]} Nf6 {[%emt 0:00:50]} 5. Nf3 {[%emt 0:03:29]} Be7 {[%emt 0:01:10]} 6. Nc3 {[%emt 0:02:06]} O-O {[%emt 0:01:51]} 7. Be2 {[%emt 0:04:13]} dxc4 {[%emt 0:01:16]} 8. Bxc4 {[%emt 0:01:14]} Bg4 {[%emt 0:02:07]} 9. Be3 {[%emt 0:04:10]} Nbd7 {[%emt 0:03:25]} 10. O-O {[%emt 0:06:14]} Nb6 {[%emt 0:00:17]} 11. Bb3 {[%emt 0:01:45]} Nbd5 {[%emt 0:09:00]} 12. Rc1 {[%emt 0:04:25]} c6 {[%emt 0:03:29]} 13. Re1 {[%emt 0:03:04]} Bb4 {[%emt 0:06:11]} 14. a3 {[%emt 0:03:37]} Nxc3 {[%emt 0:01:50]} 15. bxc3 {[%emt 0:00:44]} Bxa3 {[%emt 0:00:18]} 16. Rb1 {[%emt 0:01:41]} Nd5 {[%emt 0:18:18]} 17. c4 {[%emt 0:07:22]} Nc3 {[%emt 0:14:15]} 18. Qc2 {[%emt 0:01:27]} Nxb1 {[%emt 0:01:49]} 19. Qxb1 {[%emt 0:00:26]} Bxf3 {[%emt 0:00:16]} 20. gxf3 {[%emt 0:00:09]} Bd6 {[%emt 0:00:09]} 21. Bc2 {[%emt 0:09:39]} Qh4 {[%emt 0:03:43]} 22. Kf1 {[%emt 0:02:01]} Rae8 {[%emt 0:01:25]} 23. Be4 {[%emt 0:02:05]} Qh3+ {[%emt 0:02:49]} 24. Ke2 {[%emt 0:01:19]} f5 {[%emt 0:00:14]} 25. Bc2 {[%emt 0:00:26]} f4 {[%emt 0:00:18]} 26. c5 {[%emt 0:00:43]} fxe3 {[%emt 0:00:19]} 0-1

[Event "EYTCC U12 Open 2019"]
[Site "Pardubice"]
[Date "2019.07.11"]
[Round "1.23"]
[White "Bialiauski, Artsiom"]
[Black "Juhanak, Daniel"]
[Result "1-0"]
[ECO "D93"]
[WhiteElo "1784"]
[BlackElo "1510"]
[Annotator "NA"]
[PlyCount "150"]
[EventDate "2019.07.11"]
[EventType "swiss"]
[EventCountry "CZE"]
[SourceTitle "playchess.com"]
[Source "ChessBase"]
[SourceQuality "1"]
[WhiteTeam "Belarus"]
[BlackTeam "Czech Republic"]
[WhiteTeamCountry "BLR"]
[BlackTeamCountry "CZE"]
[TimeControl "40/5400+30:1800+30"]

1. d4 {[%emt 0:00:00]} d5 {[%emt 0:00:00]} 2. Nf3 {[%emt 0:00:00]} Nf6 {[%emt 0:00:12]} 3. Bf4 {[%emt 0:00:00]} g6 {[%emt 0:00:39]} 4. e3 {[%emt 0:00:23]} Bg7 {[%emt 0:00:38]} 5. c4 {[%emt 0:01:29]} O-O {[%emt 0:02:57]} 6. Nc3 {[%emt 0:00:24]} b6 {[%emt 0:05:16]} 7. cxd5 {[%emt 0:05:33]} Nxd5 {[%emt 0:12:13]} 8. Nxd5 {[%emt 0:00:08]} Qxd5 {[%emt 0:00:19]} 9. Bxc7 {[%emt 0:00:08]} Bb7 {[%emt 0:04:28]} 10. Be2 {[%emt 0:02:36]} Nc6 {[%emt 0:07:26]} 11. O-O {[%emt 0:03:27]} Rac8 {[%emt 0:10:57]} 12. Bg3 {[%emt 0:01:43]} Rfd8 {[%emt 0:02:04]} 13. b3 {[%emt 0:06:02]} b5 {[%emt 0:15:13]} 14. Rc1 {[%emt 0:02:30]} a6 {[%emt 0:02:07]} 15. Qe1 {[%emt 0:07:26]} Qf5 {[%emt 0:11:34]} 16. Rc5 {[%emt 0:03:23]} Qd7 {[%emt 0:03:07]} 17. Qc1 {[%emt 0:01:11]} e6 {[%emt 0:02:23]} 18. Rd1 {[%emt 0:06:12]} Nb4 {[%emt 0:04:56]} 19. a3 {[%emt 0:03:28]} Nd5 {[%emt 0:01:25]} 20. Ne5 {[%emt 0:05:51]} Qe8 {[%emt 0:01:34]} 21. Rc2 {[%emt 0:02:23]} Rxc2 {[%emt 0:00:55]} 22. Qxc2 {[%emt 0:00:17]} Rc8 {[%emt 0:00:24]} 23. Qd2 {[%emt 0:00:32]} Nc3 {[%emt 0:01:21]} 24. Re1 {[%emt 0:00:06]} Ne4 {[%emt 0:01:36]} 25. Qd1 {[%emt 0:00:51]} Nc3 {[%emt 0:01:01]} 26. Qa1 Nxe2+ {[%emt 0:01:03]} 27. Rxe2 {[%emt 0:02:27]} Qd8 {[%emt 0:00:58]} 28. f3 {[%emt 0:01:44]} Qd5 {[%emt 0:00:53]} 29. Qd1 {[%emt 0:04:33]} Rc3 {[%emt 0:01:19]} 30. Nd3 {[%emt 0:02:48]} Bf8 {[%emt 0:01:17]} 31. Rb2 {[%emt 0:02:14]} Bxa3 {[%emt 0:01:18]} 32. Rb1 {[%emt 0:00:12]} Be7 {[%emt 0:00:52]} 33. Nf4 {[%emt 0:00:23]} Qc6 {[%emt 0:01:47]} 34. Ne2 {[%emt 0:00:19]} Rc2 {[%emt 0:01:19]} 35. d5 {[%emt 0:00:38]} Qc8 {[%emt 0:01:11]} 36. d6 {[%emt 0:01:44]} Bd8 {[%emt 0:00:32]} 37. Nd4 {[%emt 0:02:14]} Rc3 {[%emt 0:00:27]} 38. Qd2 {[%emt 0:00:09]} b4 {[%emt 0:00:23]} 39. Qe2 {[%emt 0:03:24]} Rc1+ {[%emt 0:00:37]} 40. Rxc1 {[%emt 0:00:32]} Qxc1+ {[%emt 0:00:02]} 41. Qe1 {[%emt 0:30:36]} Qc3 {[%emt 0:31:01]} 42. Qxc3 {[%emt 0:00:50]} bxc3 {[%emt 0:00:43]} 43. Be1 {[%emt 0:00:09]} Ba5 {[%emt 0:00:00]} 44. Nc2 {[%emt 0:00:00]} Kf8 {[%emt 0:00:00]} 45. b4 {[%emt 0:00:00]} Bb6 {[%emt 0:00:00]} 46. Bxc3 {[%emt 0:00:00]} Ke8 {[%emt 0:00:00]} 47. Kf2 {[%emt 0:00:00]} Kd7 {[%emt 0:00:00]} 48. Be5 {[%emt 0:00:00]} Ba7 {[%emt 0:00:00]} 49. Na3 {[%emt 0:00:00]} Bd5 {[%emt 0:00:00]} 50. Ke2 {[%emt 0:00:00]} Bb8 {[%emt 0:00:00]} 51. e4 {[%emt 0:00:00]} Bb3 {[%emt 0:00:00]} 52. Kd3 {[%emt 0:00:00]} Bxd6 {[%emt 0:00:00]} 53. Bxd6 {[%emt 0:00:00]} Kxd6 {[%emt 0:00:00]} 54. Kc3 {[%emt 0:00:00]} Ba4 {[%emt 0:00:00]} 55. Nc4+ {[%emt 0:00:00]} Kc7 {[%emt 0:00:00]} 56. Kd4 {[%emt 0:00:00]} f6 {[%emt 0:00:00]} 57. Kc5 {[%emt 0:00:00]} f5 {[%emt 0:00:00]} 58. Nd6 {[%emt 0:00:00]} Bc6 {[%emt 0:00:16]} 59. g3 {[%emt 0:00:00]} Kd7 {[%emt 0:03:53]} 60. Nf7 {[%emt 0:00:00]} Bb5 {[%emt 0:02:27]} 61. Ng5 {[%emt 0:00:00]} h6 {[%emt 0:00:45]} 62. Nf7 {[%emt 0:00:00]} h5 {[%emt 0:00:32]} 63. Ne5+ {[%emt 0:00:00]} Ke7 {[%emt 0:01:31]} 64. Nxg6+ {[%emt 0:00:00]} Kf6 {[%emt 0:00:40]} 65. Nf4 {[%emt 0:00:00]} Kg5 {[%emt 0:01:01]} 66. h4+ {[%emt 0:00:00]} Kh6 {[%emt 0:00:26]} 67. Kb6 {[%emt 0:00:00]} Bc4 {[%emt 0:00:56]} 68. Kb7 {[%emt 0:00:00]} Bb5 {[%emt 0:00:30]} 69. Nd5 {[%emt 0:00:00]} Be2 {[%emt 0:00:32]} 70. f4 {[%emt 0:00:00]} Bf3 {[%emt 0:00:19]} 71. Kc6 {[%emt 0:00:00]} Bxe4 {[%emt 0:00:37]} 72. Kd6 {[%emt 0:00:00]} Kg6 {[%emt 0:00:34]} 73. Ke5 {[%emt 0:00:00]} Bxd5 {[%emt 0:00:12] Kxd5 Kf6+} 74. Kd6 {[%emt 0:00:00]} Kf7 {[%emt 0:00:23]} 75. Ke5 {[%emt 0:00:00]} Kg6 {[%emt 0:00:00] Kxe6} 1-0

[Event "EYTCC U12 Open 2019"]
[Site "Pardubice"]
[Date "2019.07.11"]
[Round "1.24"]
[White "Buchta, Bartolomej"]
[Black "Piatrenka, Ivan"]
[Result "0-1"]
[ECO "B08"]
[WhiteElo "1585"]
[BlackElo "1498"]
[Annotator "NA"]
[PlyCount "82"]
[EventDate "2019.07.11"]
[EventType "swiss"]
[EventCountry "CZE"]
[SourceTitle "playchess.com"]
[Source "ChessBase"]
[SourceQuality "1"]
[WhiteTeam "Czech Republic"]
[BlackTeam "Belarus"]
[WhiteTeamCountry "CZE"]
[BlackTeamCountry "BLR"]
[TimeControl "40/5400+30:1800+30"]

1. e4 {[%emt 0:00:00]} d6 {[%emt 0:00:00]} 2. d4 {[%emt 0:00:00]} Nf6 {[%emt 0:00:00]} 3. Nc3 {[%emt 0:00:02]} g6 {[%emt 0:00:00]} 4. Nf3 {[%emt 0:02:22]} Bg7 {[%emt 0:00:05]} 5. Bc4 {[%emt 0:01:15]} O-O {[%emt 0:00:59]} 6. Bg5 {[%emt 0:01:39]} Nxe4 {[%emt 0:13:19]} 7. Nxe4 {[%emt 0:00:41]} d5 {[%emt 0:00:06]} 8. Bd3 {[%emt 0:05:18]} dxe4 {[%emt 0:00:16]} 9. Bxe4 {[%emt 0:00:08]} Nc6 {[%emt 0:06:13]} 10. c3 {[%emt 0:02:00]} Qe8 {[%emt 0:12:48]} 11. Qd2 {[%emt 0:01:53]} e5 {[%emt 0:05:00]} 12. d5 {[%emt 0:00:28]} Na5 {[%emt 0:05:58]} 13. b3 {[%emt 0:05:22]} f5 {[%emt 0:00:45]} 14. Bc2 {[%emt 0:01:42]} e4 {[%emt 0:09:26]} 15. Nd4 {[%emt 0:00:53]} Qf7 {[%emt 0:03:45]} 16. c4 {[%emt 0:01:54]} c5 {[%emt 0:03:18]} 17. Qxa5 {[%emt 0:05:35]} cxd4 {[%emt 0:00:18]} 18. Rd1 {[%emt 0:01:48]} d3 {[%emt 0:01:26]} 19. Bxd3 {[%emt 0:01:58]} exd3 {[%emt 0:00:07]} 20. Rxd3 {[%emt 0:00:07]} f4 {[%emt 0:01:12]} 21. O-O {[%emt 0:00:57]} h6 {[%emt 0:01:15]} 22. Bd8 {[%emt 0:01:14]} Bf5 {[%emt 0:00:51]} 23. Rf3 {[%emt 0:01:00]} Rfxd8 {[%emt 0:00:56]} 24. Rxf4 {[%emt 0:00:18]} b6 {[%emt 0:01:22]} 25. Qb4 {[%emt 0:00:40]} Qc7 {[%emt 0:01:38]} 26. Rf3 {[%emt 0:00:41]} Be5 {[%emt 0:00:45]} 27. h3 {[%emt 0:00:31]} Bd6 {[%emt 0:00:55]} 28. Qd2 {[%emt 0:00:27]} Qg7 {[%emt 0:00:20]} 29. g4 {[%emt 0:02:37]} Be4 {[%emt 0:00:15]} 30. Re3 {[%emt 0:00:21]} Bf4 {[%emt 0:00:15]} 31. f3 {[%emt 0:00:46]} Bxe3+ {[%emt 0:00:33]} 32. Qxe3 {[%emt 0:00:07]} Bxf3 {[%emt 0:01:22]} 33. Qxf3 {[%emt 0:00:18]} Rf8 {[%emt 0:00:17]} 34. Qe3 {[%emt 0:00:51]} Rxf1+ {[%emt 0:00:08]} 35. Kxf1 {[%emt 0:00:06]} Rf8+ {[%emt 0:00:15]} 36. Kg2 {[%emt 0:00:26]} g5 {[%emt 0:02:04]} 37. Qd2 {[%emt 0:04:01]} Qf6 {[%emt 0:00:55]} 38. Qe2 {[%emt 0:01:19]} Kf7 {[%emt 0:00:55]} 39. b4 {[%emt 0:00:48]} Re8 {[%emt 0:00:56]} 40. Qd2 {[%emt 0:00:18]} Qf4 {[%emt 0:02:24]} 41. Qd1 {[%emt 0:31:29]} Re3 {[%emt 0:30:49]} 0-1

[Event "EYTCC U12 Open 2019"]
[Site "Pardubice"]
[Date "2019.07.12"]
[Round "2.1"]
[White "Maurizzi, Marc Andria"]
[Black "Royal, Shreyas"]
[Result "1-0"]
[ECO "C84"]
[WhiteElo "2412"]
[BlackElo "1996"]
[Annotator "NA"]
[PlyCount "65"]
[EventDate "2019.07.11"]
[EventType "swiss"]
[EventCountry "CZE"]
[SourceTitle "playchess.com"]
[Source "ChessBase"]
[SourceQuality "1"]
[WhiteTeam "France"]
[BlackTeam "England"]
[WhiteTeamCountry "FRA"]
[BlackTeamCountry "ENG"]
[TimeControl "40/5400+30:1800+30"]

1. e4 {[%emt 0:00:00]} e5 {[%emt 0:00:00]} 2. Nf3 {[%emt 0:00:00]} Nc6 {[%emt 0:00:34]} 3. Bb5 {[%emt 0:00:00]} a6 {[%emt 0:00:35]} 4. Ba4 {[%emt 0:00:00]} Nf6 {[%emt 0:00:23]} 5. O-O {[%emt 0:00:00]} Be7 {[%emt 0:00:26]} 6. d3 {[%emt 0:00:00]} b5 {[%emt 0:05:57]} 7. Bb3 {[%emt 0:00:00]} d6 {[%emt 0:00:59]} 8. a3 {[%emt 0:00:00]} a5 {[%emt 0:05:34]} 9. Nc3 {[%emt 0:10:48]} Rb8 {[%emt 0:03:37]} 10. Be3 {[%emt 0:19:04]} O-O {[%emt 0:09:22]} 11. a4 {[%emt 0:02:59]} b4 {[%emt 0:05:03]} 12. Nd5 {[%emt 0:00:10]} Be6 {[%emt 0:02:41]} 13. Bc4 {[%emt 0:08:11]} Qd7 {[%emt 0:03:35]} 14. Nd2 {[%emt 0:02:09]} Bd8 {[%emt 0:01:48]} 15. Nxf6+ {[%emt 0:04:00]} Bxf6 {[%emt 0:00:15]} 16. Bb5 {[%emt 0:00:07]} Qe8 {[%emt 0:03:50]} 17. Nc4 {[%emt 0:06:50]} Bd7 {[%emt 0:00:35]} 18. c3 {[%emt 0:00:13]} Ra8 {[%emt 0:02:26]} 19. Bd2 {[%emt 0:06:53]} bxc3 {[%emt 0:04:28]} 20. Bxc3 {[%emt 0:00:06]} Nb4 {[%emt 0:05:05]} 21. Bxd7 {[%emt 0:00:08]} Qxd7 {[%emt 0:00:05]} 22. Nxa5 {[%emt 0:00:13]} Rfb8 {[%emt 0:01:29]} 23. Nc4 {[%emt 0:00:27]} Qe6 {[%emt 0:02:20]} 24. Re1 {[%emt 0:02:44]} d5 {[%emt 0:03:22]} 25. exd5 {[%emt 0:00:27]} Qxd5 {[%emt 0:00:10]} 26. Nxe5 {[%emt 0:00:52]} Bxe5 {[%emt 0:00:42]} 27. Rxe5 {[%emt 0:00:24]} Qxd3 {[%emt 0:00:24]} 28. Qg4 {[%emt 0:01:53]} f6 {[%emt 0:00:57]} 29. Re7 {[%emt 0:00:22]} Qg6 {[%emt 0:00:19]} 30. Qc4+ {[%emt 0:00:21]} Kh8 {[%emt 0:01:39]} 31. Bxb4 {[%emt 0:00:11]} c5 {[%emt 0:00:28]} 32. Bc3 {[%emt 0:00:15]} Qc2 {[%emt 0:00:28]} 33. Qe4 {[%emt 0:01:14]} 1-0

[Event "EYTCC U12 Open 2019"]
[Site "Pardubice"]
[Date "2019.07.12"]
[Round "2.2"]
[White "Merriman, James"]
[Black "Makkar, Rajat"]
[Result "1-0"]
[ECO "A65"]
[WhiteElo "1808"]
[BlackElo "2064"]
[Annotator "NA"]
[PlyCount "127"]
[EventDate "2019.07.11"]
[EventType "swiss"]
[EventCountry "CZE"]
[SourceTitle "playchess.com"]
[Source "ChessBase"]
[SourceQuality "1"]
[WhiteTeam "England"]
[BlackTeam "France"]
[WhiteTeamCountry "ENG"]
[BlackTeamCountry "FRA"]
[TimeControl "40/5400+30:1800+30"]

1. d4 {[%emt 0:00:00]} Nf6 {[%emt 0:00:00]} 2. c4 {[%emt 0:00:00]} c5 {[%emt 0:00:05]} 3. d5 {[%emt 0:00:04]} e6 {[%emt 0:00:28]} 4. Nc3 {[%emt 0:00:03]} exd5 {[%emt 0:00:46]} 5. cxd5 {[%emt 0:00:09]} d6 {[%emt 0:00:07]} 6. e4 {[%emt 0:00:07]} g6 {[%emt 0:00:07]} 7. Nge2 {[%emt 0:00:26]} Bg7 {[%emt 0:00:22]} 8. Ng3 {[%emt 0:00:06]} O-O {[%emt 0:00:14]} 9. Be2 {[%emt 0:00:14]} a6 {[%emt 0:00:10]} 10. a4 {[%emt 0:00:10]} Nbd7 {[%emt 0:00:08]} 11. Bg5 {[%emt 0:00:15]} h6 {[%emt 0:00:20]} 12. Be3 {[%emt 0:00:16]} Rb8 {[%emt 0:01:16]} 13. O-O {[%emt 0:01:03]} h5 {[%emt 0:00:15]} 14. Bg5 {[%emt 0:00:33]} Qa5 {[%emt 0:02:01]} 15. Qd2 {[%emt 0:02:11]} Re8 {[%emt 0:01:00]} 16. f3 {[%emt 0:03:39]} Nh7 {[%emt 0:10:10]} 17. Bh6 {[%emt 0:01:29]} Bh8 {[%emt 0:02:38]} 18. Rfd1 {[%emt 0:06:37]} Qc7 {[%emt 0:01:41]} 19. Be3 {[%emt 0:01:53]} b6 {[%emt 0:12:54]} 20. b3 {[%emt 0:07:11]} Ne5 {[%emt 0:05:21]} 21. Rac1 {[%emt 0:03:51]} h4 {[%emt 0:00:58]} 22. Nh1 {[%emt 0:01:06]} h3 {[%emt 0:00:22]} 23. gxh3 {[%emt 0:06:57]} Bxh3 {[%emt 0:01:35]} 24. Nf2 {[%emt 0:02:37]} Bc8 {[%emt 0:01:40]} 25. f4 {[%emt 0:01:18]} Nd7 {[%emt 0:01:02]} 26. Kh1 {[%emt 0:02:49]} Bb7 {[%emt 0:05:18]} 27. Rg1 {[%emt 0:05:03]} Qd8 {[%emt 0:01:23]} 28. Rg3 {[%emt 0:04:11]} Nhf8 {[%emt 0:05:42]} 29. Ng4 {[%emt 0:03:01]} Bg7 {[%emt 0:05:01]} 30. Rh3 {[%emt 0:04:15]} Nf6 {[%emt 0:02:35]} 31. Nh6+ {[%emt 0:03:03]} Bxh6 {[%emt 0:01:27]} 32. Rxh6 {[%emt 0:00:37]} Kg7 {[%emt 0:03:57]} 33. f5 {[%emt 0:07:10]} Nxe4 {[%emt 0:01:22]} 34. Nxe4 {[%emt 0:00:54]} Rxe4 {[%emt 0:00:35]} 35. Bf3 {[%emt 0:01:30]} Bxd5 {[%emt 0:06:11]} 36. Bg5 {[%emt 0:02:01]} f6 {[%emt 0:06:01]} 37. Qxd5 {[%emt 0:08:29]} Rd4 {[%emt 0:02:16]} 38. Rh3 {[%emt 0:04:58]} Rxd5 {[%emt 0:01:35]} 39. Bh6+ {[%emt 0:00:06]} Kf7 {[%emt 0:01:04]} 40. Bxd5+ {[%emt 0:00:34]} Ke7 {[%emt 0:00:15]} 41. Bxf8+ {[%emt 0:31:04]} Kxf8 {[%emt 0:31:00]} 42. fxg6 {[%emt 0:01:08]} Kg7 {[%emt 0:00:39]} 43. Rg1 {[%emt 0:00:12]} Qh8 {[%emt 0:00:09]} 44. Rxh8 {[%emt 0:00:34]} Rxh8 {[%emt 0:00:00]} 45. Bb7 {[%emt 0:01:50]} Rh3 {[%emt 0:00:25]} 46. Rg3 {[%emt 0:01:05]} Rxg3 {[%emt 0:00:43]} 47. hxg3 {[%emt 0:00:05]} Kxg6 {[%emt 0:00:11]} 48. Bxa6 {[%emt 0:00:20]} Kf5 {[%emt 0:00:08]} 49. Kg2 {[%emt 0:01:09]} Ke4 {[%emt 0:00:06]} 50. Bb7+ {[%emt 0:00:08]} d5 {[%emt 0:01:25]} 51. g4 {[%emt 0:00:38]} Kd4 {[%emt 0:01:17]} 52. Kf3 {[%emt 0:00:58]} c4 {[%emt 0:02:03]} 53. bxc4 {[%emt 0:00:08]} dxc4 {[%emt 0:00:01]} 54. Kf4 {[%emt 0:00:38]} Kc3 {[%emt 0:00:53]} 55. Kf5 {[%emt 0:01:06]} Kb4 {[%emt 0:00:29]} 56. Kxf6 {[%emt 0:05:13]} Kxa4 {[%emt 0:00:22]} 57. g5 {[%emt 0:00:22]} c3 {[%emt 0:00:21]} 58. Be4 {[%emt 0:00:07]} b5 {[%emt 0:00:14]} 59. g6 {[%emt 0:00:25]} b4 {[%emt 0:00:08]} 60. g7 {[%emt 0:00:14]} b3 {[%emt 0:00:13]} 61. g8=Q {[%emt 0:00:10]} c2 {[%emt 0:00:07]} 62. Bxc2 {[%emt 0:00:09]} bxc2 {[%emt 0:00:05]} 63. Qc4+ {[%emt 0:00:05]} Ka3 {[%emt 0:00:04]} 64. Qxc2 {[%emt 0:00:05]} 1-0

[Event "EYTCC U12 Open 2019"]
[Site "Pardubice"]
[Date "2019.07.12"]
[Round "2.3"]
[White "Mekhane, Adam"]
[Black "Thatte, Nishchal"]
[Result "1-0"]
[ECO "C07"]
[WhiteElo "2040"]
[BlackElo "1686"]
[Annotator "NA"]
[PlyCount "147"]
[EventDate "2019.07.11"]
[EventType "swiss"]
[EventCountry "CZE"]
[SourceTitle "playchess.com"]
[Source "ChessBase"]
[SourceQuality "1"]
[WhiteTeam "France"]
[BlackTeam "England"]
[WhiteTeamCountry "FRA"]
[BlackTeamCountry "ENG"]
[TimeControl "40/5400+30:1800+30"]

1. e4 {[%emt 0:00:00]} e6 {[%emt 0:00:00]} 2. d4 {[%emt 0:00:00]} d5 {[%emt 0:00:00]} 3. Nd2 {[%emt 0:00:00]} c5 {[%emt 0:00:00]} 4. exd5 {[%emt 0:00:00]} Qxd5 {[%emt 0:00:00]} 5. dxc5 {[%emt 0:00:00]} Bxc5 {[%emt 0:00:03]} 6. Ngf3 {[%emt 0:00:09]} Nf6 {[%emt 0:00:08]} 7. Bc4 {[%emt 0:00:06]} Qc6 {[%emt 0:00:10]} 8. Qe2 {[%emt 0:00:35]} O-O {[%emt 0:00:21]} 9. O-O {[%emt 0:00:06]} a6 {[%emt 0:00:16]} 10. Bd3 {[%emt 0:06:17]} Nbd7 {[%emt 0:00:58]} 11. Ne4 {[%emt 0:04:20]} Nxe4 {[%emt 0:05:39]} 12. Bxe4 {[%emt 0:01:13]} Qc7 {[%emt 0:01:01]} 13. c3 {[%emt 0:04:10]} Nf6 {[%emt 0:04:45]} 14. Bc2 {[%emt 0:02:51]} b6 {[%emt 0:04:07]} 15. Bg5 {[%emt 0:05:35]} Bb7 {[%emt 0:10:48]} 16. Bxf6 {[%emt 0:01:06]} gxf6 {[%emt 0:00:05]} 17. Be4 {[%emt 0:00:10]} Bxe4 {[%emt 0:04:35]} 18. Qxe4 {[%emt 0:00:13]} f5 {[%emt 0:00:18]} 19. Qh4 {[%emt 0:06:44]} Qe7 {[%emt 0:01:20]} 20. Qh6 {[%emt 0:09:03]} Rae8 {[%emt 0:06:19]} 21. Rfe1 {[%emt 0:05:52]} f6 {[%emt 0:02:25]} 22. Rad1 {[%emt 0:04:45]} Qg7 {[%emt 0:07:07]} 23. Qxg7+ {[%emt 0:07:03]} Kxg7 {[%emt 0:00:02]} 24. b4 {[%emt 0:00:25]} Be7 {[%emt 0:03:17]} 25. Rxe6 {[%emt 0:02:00]} Bd8 {[%emt 0:10:42]} 26. Rd7+ {[%emt 0:02:07]} Rf7 {[%emt 0:05:19]} 27. Rxf7+ {[%emt 0:01:27]} Kxf7 {[%emt 0:01:31]} 28. Rxe8 {[%emt 0:00:08]} Kxe8 {[%emt 0:00:02]} 29. Nd4 {[%emt 0:00:34]} Bc7 {[%emt 0:05:14]} 30. Nxf5 {[%emt 0:03:17]} Be5 {[%emt 0:00:02]} 31. Nd4 {[%emt 0:00:28]} Kd7 {[%emt 0:00:59]} 32. Kf1 {[%emt 0:00:24]} Kd6 {[%emt 0:00:29]} 33. Ke2 {[%emt 0:02:18]} Kd5 {[%emt 0:00:57]} 34. Kd3 {[%emt 0:00:07]} b5 {[%emt 0:00:09]} 35. g3 {[%emt 0:02:15]} Bc7 {[%emt 0:02:04]} 36. f3 {[%emt 0:04:37]} Bb6 {[%emt 0:00:24]} 37. Ne2 {[%emt 0:00:55]} Ba7 {[%emt 0:02:08]} 38. h4 {[%emt 0:00:45]} Bf2 {[%emt 0:00:33]} 39. h5 {[%emt 0:02:43]} Be1 {[%emt 0:01:40]} 40. g4 {[%emt 0:02:05]} Bf2 {[%emt 0:00:28]} 41. Nf4+ {[%emt 0:34:11]} Kd6 {[%emt 0:30:36]} 42. c4 {[%emt 0:01:31]} bxc4+ {[%emt 0:02:06]} 43. Kxc4 {[%emt 0:00:10]} Ba7 {[%emt 0:00:03]} 44. Nd3 {[%emt 0:00:26]} Kc6 {[%emt 0:00:29]} 45. Nc5 {[%emt 0:00:35]} a5 {[%emt 0:00:28]} 46. Ne4 {[%emt 0:00:31]} axb4 {[%emt 0:00:08]} 47. Nxf6 {[%emt 0:00:11]} Be3 {[%emt 0:00:09]} 48. Nxh7 {[%emt 0:00:13]} Kd6 {[%emt 0:00:03]} 49. Nf8 Bd2 {[%emt 0:00:17]} 50. Ng6 {[%emt 0:01:53]} Ke6 {[%emt 0:01:22]} 51. Kd3 {[%emt 0:00:15]} Bc1 {[%emt 0:00:05]} 52. Ke4 {[%emt 0:00:11]} Bd2 {[%emt 0:00:05]} 53. f4 {[%emt 0:00:29]} Kf6 {[%emt 0:00:03]} 54. Ne5 {[%emt 0:00:21]} Kg7 {[%emt 0:00:04]} 55. g5 {[%emt 0:00:11]} Bc3 {[%emt 0:00:07]} 56. Kf5 {[%emt 0:00:07]} Ba1 {[%emt 0:00:23]} 57. h6+ {[%emt 0:00:22]} Kh7 {[%emt 0:00:00]} 58. Nd7 {[%emt 0:00:09]} Bb2 {[%emt 0:00:06]} 59. Nf6+ {[%emt 0:00:11]} Kh8 {[%emt 0:00:06]} 60. g6 {[%emt 0:00:17]} Bxf6 {[%emt 0:00:37]} 61. Kxf6 {[%emt 0:00:36]} Kg8 {[%emt 0:00:08]} 62. g7 {[%emt 0:00:30]} Kh7 {[%emt 0:00:17]} 63. Kf7 {[%emt 0:00:34]} Kxh6 {[%emt 0:00:06]} 64. g8=Q {[%emt 0:00:10]} b3 {[%emt 0:00:05]} 65. axb3 Kh5 {[%emt 0:00:05]} 66. b4 {[%emt 0:00:12]} Kh4 {[%emt 0:00:05]} 67. b5 {[%emt 0:00:04]} Kh3 {[%emt 0:00:04]} 68. b6 {[%emt 0:00:05]} Kh2 {[%emt 0:00:06]} 69. b7 {[%emt 0:00:04]} Kh1 {[%emt 0:00:13]} 70. b8=B {[%emt 0:00:06]} Kh2 {[%emt 0:00:11]} 71. Qg4 {[%emt 0:00:17]} Kh1 {[%emt 0:00:06]} 72. Ba7 {[%emt 0:00:05]} Kh2 {[%emt 0:00:05]} 73. Bb6 {[%emt 0:00:03]} Kh1 {[%emt 0:00:05]} 74. Qg1# {[%emt 0:00:03]} 1-0